[Event "US Masters 2022"]
[Site "Charlotte"]
[Date "2022.11.28"]
[Round "9.18"]
[White "Ghaemmaghami, Ehsan"]
[Black "Sethuraman, Sandeep"]
[Result "1-0"]
[ECO "D12"]
[WhiteElo "2511"]
[BlackElo "2371"]
[Annotator "TA"]
[PlyCount "125"]
[EventDate "2022.11.23"]
[EventType "swiss"]
[EventCountry "USA"]
[SourceTitle "playchess.com"]
[Source "ChessBase"]
[SourceQuality "1"]
[TimeControl "5400+30"]

{[%evp 15,125,22,23,14,24,15,61,64,69,71,91,122,133,121,147,89,130,140,136,143,139,150,158,114,119,110,117,108,165,147,159,164,161,166,165,127,162,84,110,34,74,61,59,68,197,203,225,206,203,208,237,239,311,238,247,226,323,337,425,398,389,250,254,257,227,41,217,-7,0,0,0,-5,-64,-101,-111,-102,-96,-100,22,0,262,239,542,0,0,0,0,0,0,0,0,0,7,7,0,0,0,0,284,560,1022,941,909,20,4702,4899,4045,2099,5097,5097,4133,1476]} 1. Nf3 {[%emt 0:26:55]} d5 {[%emt 0:00:13]} 2. d4 {[%emt 0:00:06]} Nf6 {[%emt 0:00:06]} 3. c4 {[%emt 0:00:04]} c6 {[%emt 0:00:04]} 4. e3 {[%emt 0:01:41]} Bf5 {[%emt 0:00:05]} 5. Nc3 {[%emt 0:00:08]} e6 {[%emt 0:00:05]} 6. Nh4 {[%emt 0:00:13]} Be4 {[%emt 0:00:04]} 7. f3 {[%emt 0:00:14]} Bg6 {[%emt 0:00:06]} 8. Qb3 {[%emt 0:00:19]} Qc7 {[%emt 0:00:13]} 9. Bd2 {[%emt 0:01:52] D12: Slav Defence: 3 Nf3 Nf6 4 e3 Bf5.} Be7 {[%emt 0:00:11]} 10. O-O-O {[%emt 0:05:39]} a6 {[%emt 0:06:20]} (10... dxc4 $11 11. Bxc4 a5) 11. c5 $14 {[%emt 0:17:34] White is slightly better.} Nbd7 {[%emt 0:09:29]} 12. Na4 {[%emt 0:01:12] [#] Inhibits b6.} Ne4 $146 {[%emt 0:08:57]} ({Predecessor:} 12... e5 13. g4 O-O 14. Nxg6 fxg6 15. h4 Rab8 16. Bh3 Kh8 17. Qc2 Rbe8 18. Kb1 Bd8 {½-½ (25) Lupulescu,C (2622)-Bartel,M (2616) Germany 2022}) 13. Be1 {[%emt 0:01:00]} Nef6 {[%emt 0:03:50]} 14. g4 {[%emt 0:03:26]} Bd8 {[%emt 0:10:43]} 15. Ng2 {[%emt 0:10:15]} (15. Nxg6 $142 hxg6 16. h4) 15... Qc8 {[%emt 0:06:02]} 16. h4 {[%emt 0:01:38]} h6 {[%emt 0:04:57]} 17. Nf4 {[%emt 0:01:40]} Bh7 {[%emt 0:00:10]} 18. g5 {[%emt 0:09:17]} Ng8 {[%emt 0:00:17]} 19. g6 {[%emt 0:00:36]} Bxg6 {[%emt 0:00:21]} 20. Nxg6 {[%emt 0:00:06]} fxg6 {[%emt 0:00:04]} 21. Bh3 {[%emt 0:00:04]} Kf7 {[%emt 0:03:03]} (21... Ndf6 $16) 22. Rg1 {[%emt 0:01:22][%mdl 1024] White has strong compensation.} Ne7 {[%emt 0:03:45]} 23. e4 {[%emt 0:02:27]} Re8 {[%emt 0:06:21]} 24. Bd2 {[%emt 0:02:50]} Nf8 {[%emt 0:02:20]} 25. Rg2 {[%emt 0:02:57][%cal Oh4h5]} Qd7 {[%emt 0:03:01] Inhibits h5.} 26. Bf4 {[%emt 0:05:21]} (26. h5 $18) 26... Bc7 $16 {[%emt 0:03:33]} 27. Qe3 {[%emt 0:00:30] White is much more active.} (27. Be3 $1 $16) 27... Rad8 {[%emt 0:02:33]} 28. Nb6 {[%emt 0:02:04]} Bxb6 {[%emt 0:00:05]} 29. cxb6 {[%emt 0:00:01][%cal Oh4h5]} c5 {[%emt 0:16:08] Prevents h5.} ({Better is} 29... Kg8 $14) 30. dxc5 $18 {[%emt 0:00:04]} Qa4 {[%emt 0:01:19]} 31. Bc7 {[%emt 0:00:30]} Rd7 {[%emt 0:01:44]} 32. b3 {[%emt 0:02:36]} Qb4 {[%emt 0:01:47]} 33. Rc2 {[%emt 0:00:29]} Nc6 {[%emt 0:01:29]} 34. Bd6 {[%emt 0:00:56]} d4 {[%emt 0:01:44]} 35. Qd2 {[%emt 0:00:42]} Qa3+ {[%emt 0:00:22]} (35... Qxd2+ {might work better.} 36. Rcxd2 (36. Rdxd2 g5 $16) 36... Kg8) 36. Kb1 {[%emt 0:00:02]} Rxd6 {[%emt 0:00:59]} 37. Qf4+ {[%emt 0:01:32]} (37. cxd6 Qxd6 38. f4 Qd8 $18) 37... Kg8 {[%emt 0:00:01]} 38. cxd6 {[%emt 0:00:18][%cal Oc2c6] Hoping for Rxc6!} e5 {[%emt 0:00:24]} 39. Qc1 {[%emt 0:00:43]} (39. d7 $6 Rd8 40. Qc1 (40. Qg3 Nb4 $14) 40... Qd6 $18) 39... Qxd6 {[%emt 0:00:03] [#]} 40. Rc5 $2 {[%emt 0:00:26]} ({White must play} 40. Rxc6 $1 $18 {[%mdl 512]} bxc6 41. Qc4+ Kh7 42. Qf7 (42. Qxa6 Rb8 $11)) 40... Qf6 {[%emt 0:00:37] [#]} (40... Kh7 $14) 41. Bf1 $2 {[%emt 0:00:38]} (41. Qc4+ Kh7 $14) (41. Rxc6 $1 $18 {[%mdl 512]} bxc6 42. b7) 41... Qxf3 {[%emt 0:00:21]} 42. Bxa6 {[%emt 0:00:26][%mdl 64]} Nd7 $1 {[%emt 0:01:11][%cal Od7c5]} 43. Rc2 {[%emt 0:00:31] Threatens to win with Rf1.} Nb4 {[%emt 0:00:24]} 44. Bc4+ {[%emt 0:00:31]} Kh7 $1 {[%emt 0:00:06][%cal Of3e4]} 45. Re2 {[%emt 0:00:24]} Nxb6 {[%emt 0:00:50] Pair of Knights!} 46. Rf1 {[%emt 0:00:20]} Qg4 {[%emt 0:00:31]} (46... Qh3 $17 {Strongly threatening ...Nxc4.} 47. Rh1 Qd7) 47. Rg1 $11 {[%emt 0:00:30]} Qh5 {[%emt 0:03:38][%mdl 8192] [#]} (47... Qf3 $1 $11 48. Bb5 Re7) 48. Reg2 $1 $18 {[%emt 0:00:24]} Qxh4 $2 {[%emt 0:01:55] [#]} (48... Nxc4 {is more resistant.} 49. Qxc4 Nc6) 49. Rxg6 $2 {[%emt 0:00:42]} (49. Bf7 $1 $18 Rc8 50. Bxg6+ Kh8 51. Qd2) 49... Qxe4+ $11 {[%emt 0:00:37]} 50. Kb2 {[%emt 0:00:40]} (50. Ka1 $5 Nc2+ $8 51. Kb2 Nxc4+ 52. bxc4 $11) 50... Nxc4+ {[%emt 0:01:02]} (50... Qxg6 $2 51. Rxg6 Kxg6 52. Qg1+ Kh7 53. Bf7 $18) 51. Qxc4 {[%emt 0:00:03] Chess con chili.} Nd3+ {[%emt 0:00:06]} (51... Qxg6 $2 52. Rxg6 Kxg6 53. Qxb4 $18) 52. Ka1 {[%emt 0:00:07]} Re7 {[%emt 0:00:11] ...Nf4 is the strong threat.} (52... Qxg6 $2 53. Rxg6 Kxg6 54. Qxd3+ e4 55. Qxd4 $18) 53. Qe6 $40 {[%emt 0:00:57][%mdl 192] Intending Rxh6+ and mate. Black needs to defend precisely.} Qe1+ $1 (53... Rxe6 $2 {is a self mate.} 54. Rxg7+ Kh8 55. Rg8+ Kh7 56. R1g7#) 54. Rxe1 {[%emt 0:00:11] Reg1 would kill now.} Rxe6 {[%emt 0:01:45]} 55. Rxe6 {[%emt 0:00:10]} Nxe1 {[%emt 0:00:02]} 56. Rxe5 {[%emt 0:00:10][%mdl 4096] Endgame KR-KN} Ng2 {[%emt 0:00:39][%mdl 8192]} (56... Nf3 $11 57. Rf5 Ne1) 57. a4 $18 {[%emt 0:00:40][%cal Ba2a4,Ba4a5][%mdl 32]} ({Weaker is} 57. Rd5 Ne3 58. Rd7 (58. Rxd4 $2 {loses.} Nc2+ 59. Kb1 Nxd4 $19) 58... h5 $11) 57... Kg6 {[%emt 0:01:23]} 58. a5 {[%emt 0:00:37] And now Rb5 would win.} h5 {[%emt 0:00:08]} 59. Re4 $2 {[%emt 0:01:04]} (59. Re6+ $18 Kf5 60. Re7) 59... Kf5 $2 {[%emt 0:00:56][%mdl 8192]} (59... h4 $11) 60. Rxd4 {[%emt 0:00:19] White is clearly winning.} h4 {[%emt 0:00:18]} 61. Rd7 {[%emt 0:01:12][%csl LRb7,LRg7]} h3 {[%emt 0:00:25]} 62. Rxg7 {[%emt 0:00:12]} Nh4 {[%emt 0:00:46]} 63. Rxb7 {[%emt 0:00:22] Weighted Error Value: White=0.41/Black=0.51} (63. Rg3 $142 Ke6 64. Rxh3) 1-0

[Event "US Masters 2022"]
[Site "Charlotte"]
[Date "2022.11.28"]
[Round "9.19"]
[White "Wang, Jason"]
[Black "Budisavljevic, Luka"]
[Result "1/2-1/2"]
[ECO "E12"]
[WhiteElo "2345"]
[BlackElo "2505"]
[Annotator "TA"]
[PlyCount "76"]
[EventDate "2022.11.23"]
[EventType "swiss"]
[EventCountry "USA"]
[SourceTitle "playchess.com"]
[Source "ChessBase"]
[SourceQuality "1"]
[TimeControl "5400+30"]

{[%evp 15,76,11,22,7,15,14,0,0,0,0,0,0,0,0,30,7,7,0,86,24,29,12,6,4,14,2,16,-5,0,0,23,14,24,12,23,-45,17,-6,0,-22,10,-26,0,0,15,-14,18,-8,15,-10,25,29,73,13,33,10,135,120,142,116,104,127,207]} 1. d4 {[%emt 0:00:30]} Nf6 {[%emt 0:01:12]} 2. c4 {[%emt 0:00:04]} e6 {[%emt 0:00:03]} 3. Nf3 {[%emt 0:00:05]} b6 {[%emt 0:00:14]} 4. a3 {[%emt 0:00:04]} Ba6 {[%emt 0:00:17]} 5. Qc2 {[%emt 0:01:08]} Bb7 {[%emt 0:00:31]} 6. Nc3 {[%emt 0:00:58]} c5 {[%emt 0:00:10]} 7. dxc5 {[%emt 0:02:59]} bxc5 {[%emt 0:00:36]} 8. Bf4 {[%emt 0:03:41]} Nh5 {[%emt 0:00:24]} 9. Bg5 {[%emt 0:02:51] E12: Queen's Indian: Unusual White 4th moves, 4 a3, 4 Nc3 Bb7 5 a3 and 4 Nc3 Bb7 .} Qc7 {[%emt 0:00:08] [#]} 10. e4 $146 {[%emt 0:04:03]} ({Predecessor:} 10. e3 a6 11. Be2 Nc6 12. Rd1 Be7 13. Ne4 O-O 14. Bxe7 Nxe7 15. Nfg5 f5 16. Bxh5 fxe4 17. Nxe4 {1-0 (28) Kononenko,T (2305)-Schott,R (2129) Le Touquet 2004}) 10... a6 {[%emt 0:00:25] Inhibits Nb5.} 11. g3 {[%emt 0:03:35] The position is equal.} Nc6 {[%emt 0:03:25]} 12. Bg2 {[%emt 0:03:18]} h6 {[%emt 0:00:36]} 13. Be3 {[%emt 0:00:47]} Be7 {[%emt 0:00:30]} 14. O-O {[%emt 0:00:36]} d6 {[%emt 0:02:41]} 15. Rab1 {[%emt 0:02:45]} a5 {[%emt 0:04:38] Prevents b4.} 16. Rfd1 {[%emt 0:02:02]} Rd8 {[%emt 0:03:28]} (16... O-O $11) 17. Ne1 {[%emt 0:03:39]} (17. e5 $16 {Threatens to win with Nb5.} dxe5 18. Rxd8+ Kxd8 19. Qd1+ Ke8 20. Qb3) 17... Nf6 {[%emt 0:00:26]} 18. h3 {[%emt 0:02:02]} O-O {[%emt 0:01:37]} 19. Qd2 {[%emt 0:06:03]} Qb8 {[%emt 0:05:11]} 20. f4 {[%emt 0:04:07]} Rfe8 {[%emt 0:01:45]} 21. Qf2 {[%emt 0:02:28]} Nd7 {[%emt 0:02:20]} 22. b3 {[%emt 0:05:04]} Rf8 {[%emt 0:01:34]} (22... Bf6 $5 {[%cal Rf6c3]} 23. Nb5 Be7 $14) 23. Nc2 {[%emt 0:02:06]} Qa8 {[%emt 0:07:03]} 24. Rd2 {[%emt 0:03:26]} Nf6 {[%emt 0:10:05]} 25. Re1 {[%emt 0:02:33]} ({White should play} 25. g4 $11) 25... Rfe8 {[%emt 0:13:56]} (25... Nb8 $1 $15) 26. Nb5 {[%emt 0:02:36]} Qb8 {[%emt 0:00:15] Prevents Nc7.} 27. Nc3 {[%emt 0:05:48]} Bf8 {[%emt 0:03:25]} 28. Red1 {[%emt 0:01:17]} Ba8 {[%emt 0:01:07]} (28... e5 {is more complex.} 29. fxe5 Nxe5 30. Bxh6 a4) 29. Rb1 {[%emt 0:03:35]} Rd7 {[%emt 0:00:48]} 30. g4 {[%emt 0:02:23][%cal Bg3g4,Bg4g5][%mdl 32]} Rdd8 {[%emt 0:01:53]} 31. Bf3 {[%emt 0:01:23]} Nh7 {[%emt 0:01:06]} (31... d5 {seems wilder.} 32. exd5 exd5 33. Nxd5 Ne4) 32. h4 {[%emt 0:02:22]} g6 {[%emt 0:00:57]} 33. g5 {[%emt 0:01:30]} h5 {[%emt 0:01:26]} 34. Rd3 {[%emt 0:02:15]} (34. Rdd1 $16) 34... Bg7 $11 {[%emt 0:01:45]} 35. Bg2 {[%emt 0:02:14]} Kh8 {[%emt 0:08:57] [#]} (35... Bxc3 $1 $11 {keeps the balance.} 36. Rxc3 e5) 36. Nb5 $1 $16 {[%emt 0:02:05]} Na7 {[%emt 0:00:56]} 37. Nxa7 {[%emt 0:02:17] White is more active.} Qxa7 {[%emt 0:00:04]} 38. Rbd1 {[%emt 0:00:05][%cal Oe3c5] Hoping for Bxc5!} Qc7 {[%emt 0:04:42] Weighted Error Value: White=0.19 (very precise) /Black=0.21 (precise)} (38... Qb6 $16 {is a better defense.}) 1/2-1/2

[Event "US Masters 2022"]
[Site "Charlotte"]
[Date "2022.11.28"]
[Round "9.20"]
[White "Beradze, Irakli"]
[Black "Jacobson, Aaron"]
[Result "1/2-1/2"]
[ECO "A14"]
[WhiteElo "2494"]
[BlackElo "2351"]
[Annotator "TA"]
[PlyCount "37"]
[EventDate "2022.11.23"]
[EventType "swiss"]
[EventCountry "USA"]
[SourceTitle "playchess.com"]
[Source "ChessBase"]
[SourceQuality "1"]
[TimeControl "5400+30"]

{[%evp 16,37,4,-19,-11,-9,-6,-16,-10,-13,-5,-22,0,0,0,0,0,-9,-15,0,42,0,0,0]} 1. Nf3 {[%emt 0:07:22]} d5 {[%emt 0:00:12]} 2. g3 {[%emt 0:00:04]} Nf6 {[%emt 0:00:04]} 3. Bg2 {[%emt 0:00:07]} e6 {[%emt 0:00:06]} 4. c4 {[%emt 0:00:17]} Be7 {[%emt 0:00:05]} 5. O-O {[%emt 0:00:25]} O-O {[%emt 0:00:06]} 6. b3 {[%emt 0:00:04]} b6 {[%emt 0:00:15]} 7. Bb2 {[%emt 0:04:14]} Bb7 {[%emt 0:00:22]} 8. d3 {[%emt 0:00:12]} c5 {[%emt 0:01:37]} 9. Nbd2 {[%emt 0:09:30]} d4 {[%emt 0:01:53] A14: English Opening: 1...e6 with b3 by White.} 10. b4 {[%emt 0:01:35]} Nbd7 {[%emt 0:01:02][%cal Bb8d7,Bd7b6,Bb6a4][%mdl 32]} (10... Qc7 {feels hotter.} 11. Re1 Nbd7 12. bxc5 bxc5 13. e3 dxe3 14. Rxe3 Ng4) 11. bxc5 {[%emt 0:01:17]} bxc5 {[%emt 0:00:06]} 12. Rb1 {[%emt 0:00:24][%cal Ob2d4]} Qc7 {[%emt 0:02:11]} 13. e3 {[%emt 0:11:30]} e5 {[%emt 0:02:37]} (13... dxe3 {is more complex.} 14. fxe3 Ng4 15. Qe2 Rab8) 14. Ba3 {[%emt 0:04:50] [#]} Nb6 $146 {[%emt 0:05:23]} ({Predecessor:} 14... dxe3 15. fxe3 Nb6 16. Ng5 Bxg2 17. Kxg2 Rad8 18. Qe2 Qd7 19. Rb3 h6 20. Nge4 Nxe4 21. Nxe4 {0-1 (72) Ivanovic,D (2307)-Perunovic,M (2433) Kragujevac 2018}) 15. exd4 {[%emt 0:00:14]} exd4 {[%emt 0:00:25]} 16. Re1 {[%emt 0:00:03][%cal Of3d4]} Rfe8 {[%emt 0:05:22]} 17. Nb3 {[%emt 0:05:05][%cal Oe1e7]} Rac8 {[%emt 0:22:20]} 18. Qd2 {[%emt 0:07:31]} (18. Bh3 $5 {[%cal Rh3c8]}) 18... Na4 {[%emt 0:01:48]} 19. Qa5 {[%emt 0:00:11] An interesting draw.   Weighted Error Value: White=0.10 (very precise) /Black=0.10 (very precise)} ({Don't play} 19. Na5 Bxf3 20. Bxf3 Nc3 $17) 1/2-1/2

[Event "US Masters 2022"]
[Site "Charlotte"]
[Date "2022.11.28"]
[Round "9.22"]
[White "Narayanan, Samrug"]
[Black "Atanasov, Anthony"]
[Result "0-1"]
[ECO "C42"]
[WhiteElo "2340"]
[BlackElo "2215"]
[Annotator "TA"]
[PlyCount "48"]
[EventDate "2022.11.23"]
[EventType "swiss"]
[EventCountry "USA"]
[SourceTitle "playchess.com"]
[Source "ChessBase"]
[SourceQuality "1"]
[TimeControl "5400+30"]

{[%evp 13,48,7,23,22,15,18,19,22,28,21,32,12,16,14,18,26,23,21,22,0,39,-47,-47,-220,-238,-640,-618,-616,-632,-556,-471,-898,-887,-29963,-2145,-29987,-29988]} 1. e4 {[%emt 1:31:00] Sethuraman,SP} e5 {[%emt 0:00:07]} 2. Nf3 {[%emt 0:00:00]} Nf6 {[%emt 0:00:05]} 3. Nxe5 {[%emt 0:00:00]} d6 {[%emt 0:00:03]} 4. Nf3 {[%emt 0:00:00]} Nxe4 {[%emt 0:00:03]} 5. Nc3 {[%emt 0:00:00]} Nxc3 {[%emt 0:00:06]} 6. dxc3 {[%emt 0:00:00]} Be7 {[%emt 0:00:07]} 7. Be3 {[%emt 0:00:00]} Nd7 {[%emt 0:00:06]} 8. Qd2 {[%emt 0:00:00] C42: Petroff Defence: 3 Nxe5 and unusual White 3rd moves.} Nf6 {[%emt 0:00:10]} 9. O-O-O {[%emt 0:00:00]} O-O {[%emt 0:00:06]} 10. Bd3 {[%emt 0:00:00] The position is equal.} d5 {[%emt 0:00:05]} 11. Rhe1 {[%emt 0:00:00]} Bg4 {[%emt 0:00:14][%cal Bc8g4,Bg4h5,Bh5g6][%mdl 32]} 12. Qe2 {[%emt 0:00:00] [#]} c6 $146 {[%emt 0:10:09]} ({Predecessor:} 12... Re8 13. h3 Bh5 14. g4 Bg6 15. Bxg6 hxg6 16. g5 Ne4 17. c4 Bb4 18. Rxd5 Qc8 {1-0 (42) Sethuraman,S (2624)-Shirov,A (2664) Douglas 2019 CBM 193 Extra [Sethuraman,SP]}) 13. h3 {[%emt 0:00:00]} Bh5 {[%emt 0:00:17]} 14. g4 {[%emt 0:00:00]} Bg6 {[%emt 0:00:17]} 15. Nd4 {[%emt 0:00:00]} Re8 {[%emt 0:06:38]} 16. g5 {[%emt 0:00:00]} Ne4 {[%emt 0:16:32]} 17. f4 {[%emt 0:00:00]} (17. h4 $1 $14) 17... c5 $15 {[%emt 0:04:49] White must now prevent ...Nxc3.} 18. f5 $2 {[%emt 0:00:00] [#] Now White is beyond hope.} (18. Nb3 $15) 18... Nxc3 $1 $19 {[%emt 0:02:36]} 19. bxc3 {[%emt 0:00:00]} (19. Qg4 cxd4 20. fxg6 fxg6 21. bxc3 Ba3+ 22. Kd2 dxe3+ 23. Rxe3) 19... cxd4 {[%emt 0:00:02]} 20. cxd4 {[%emt 0:00:00] [#]} Qa5 $1 {[%emt 0:07:15] ( -> ...Ba3+)} 21. c3 {[%emt 0:00:00]} Bxg5 {[%emt 0:07:04]} 22. Kb2 {[%emt 0:00:00]} (22. Qd2 $142 Rxe3 23. Rxe3 Bxe3 24. Qxe3 Qxc3+ 25. Kb1 Bxf5 26. Qe2 Qb4+ 27. Qb2 Bxd3+ 28. Rxd3 Qe1+ 29. Qc1) 22... Rxe3 {[%emt 0:03:00]} 23. Qg4 {[%emt 0:00:00] [#]} Rxe1 {[%emt 0:00:38]} (23... Rc8 $142 $1 24. Rc1 Rxd3 25. Qxg5 f6 26. Qe3 Rxe3 27. Rxe3 Bxf5 28. Rc2 Rc6 29. Kc1 Bxc2 30. Kxc2 Qxa2+ 31. Kd3 Ra6 32. h4 Qc4+ 33. Kd2 Ra2+ 34. Ke1 Qb5 35. Re8+ Qxe8+ 36. Kf1 Qe2+ 37. Kg1 Qg2#) 24. Rxe1 {[%emt 0:00:00]} Bd2 {[%emt 0:00:10][%csl LRc3,LRe1] Weighted Error Value: White=1.34/Black=0.40} 0-1

[Event "US Masters 2022"]
[Site "Charlotte"]
[Date "2022.11.28"]
[Round "9.24"]
[White "Canty, James"]
[Black "Gutla, Aryan"]
[Result "0-1"]
[ECO "B22"]
[WhiteElo "2158"]
[BlackElo "2033"]
[Annotator "TA"]
[PlyCount "74"]
[EventDate "2022.11.23"]
[EventType "swiss"]
[EventCountry "USA"]
[SourceTitle "playchess.com"]
[Source "ChessBase"]
[SourceQuality "1"]
[TimeControl "5400+30"]

{[%evp 9,74,0,21,0,0,-11,-10,-18,14,0,7,4,16,0,18,0,0,0,0,-10,0,0,4,-7,5,0,26,0,0,0,7,8,83,5,7,10,9,-57,-47,-40,-61,-370,-404,-400,-397,-465,-480,-464,-462,-683,-650,-754,-722,-811,-793,-787,-604,-827,-819,-882,-713,-685,-508,-1500,-1484,-1354,-1339]} 1. e4 {[%emt 0:10:44]} c5 {[%emt 0:00:01]} 2. c3 {[%emt 0:00:02]} d5 {[%emt 0:00:11]} 3. exd5 {[%emt 0:00:26]} Nf6 {[%emt 0:00:06]} 4. d4 {[%emt 0:00:58]} Nxd5 {[%emt 0:00:26]} 5. Nf3 {[%emt 0:01:20]} e6 {[%emt 0:00:44]} 6. Bd3 {[%emt 0:00:16] B22: Sicilian: 2 c3.} cxd4 {[%emt 0:01:40]} 7. cxd4 {[%emt 0:00:56]} Bb4+ {[%emt 0:06:00]} 8. Nbd2 {[%emt 0:00:21] The position is equal.} Nd7 {[%emt 0:04:25]} (8... Nf4 $5 {[%cal Rf4d3]} 9. Bf1 Nc6 $11) 9. O-O {[%emt 0:00:16]} O-O {[%emt 0:00:55]} 10. a3 {[%emt 0:01:52]} Be7 {[%emt 0:00:44] [#]} 11. Nc4 $146 {[%emt 0:03:23]} ({Predecessor:} 11. Nb3 h6 12. Bd2 b6 13. Rc1 Bb7 14. Re1 Rc8 15. Qe2 Bd6 16. Qe4 N7f6 17. Qe2 {0-1 (59) Ackermann,R-Schmitt,H (2028) Frankfurt 2002}) 11... N7f6 {[%emt 0:03:49]} 12. Bg5 {[%emt 0:03:09]} b6 {[%emt 0:01:59]} 13. Rc1 {[%emt 0:05:17]} Bb7 {[%emt 0:02:18]} 14. Bb1 {[%emt 0:00:33]} Rc8 {[%emt 0:02:55]} 15. Re1 {[%emt 0:01:46]} Rc7 {[%emt 0:09:25]} 16. Qb3 {[%emt 0:07:29]} (16. Qd3 {is interesting.} Ba6 17. Bd2 Qc8 18. Nfe5) 16... a6 {[%emt 0:18:22]} (16... Nh5 {looks sharper.} 17. Qd3 g6 18. Bh6 Qc8) 17. Rcd1 {[%emt 0:03:06]} h6 {[%emt 0:06:57]} 18. Bc1 {[%emt 0:01:58]} b5 {[%emt 0:00:41]} 19. Nce5 {[%emt 0:00:52]} Nb6 {[%emt 0:03:34]} 20. Qd3 {[%emt 0:07:30][%cal Oe5g4] Ng4! is the strong threat.} Qd5 {[%emt 0:10:05] [#]} (20... Re8 $11 {remains equal.}) 21. Ng4 {[%emt 0:10:34]} Nbd7 $11 {[%emt 0:25:43]} 22. Bf4 {[%emt 0:10:39]} Rcc8 {[%emt 0:00:00]} 23. b3 {[%emt 0:01:13] Prevents Qc4.} Rfd8 $36 {[%emt 0:00:00][%mdl 2048] Black is pushing.} (23... Nxg4 $2 24. Qh7#) 24. Bxh6 {[%emt 0:06:35]} Qh5 {[%emt 0:00:00]} (24... Nxg4 $2 {gets mated.} 25. Qh7+ Kf8 26. Qh8#) 25. Re5 $2 {[%emt 0:03:25][%mdl 8192] Loses the game.} Qxg4 $19 {[%emt 0:00:00] Dancing on a razor blade.} 26. Rg5 {[%emt 0:00:08]} Bxf3 {[%emt 0:00:00][%cal Bb7f3,Bf3g4,Bg4h5][%mdl 32]} 27. Rxg4 {[%emt 0:01:56]} Bxg4 {[%emt 0:00:00] Black is clearly winning.} 28. Qg3 {[%emt 0:01:16]} Bd6 {[%emt 0:00:00]} (28... Bxd1 $2 29. Qxg7#) (28... gxh6 $2 29. f3 $19) 29. f4 {[%emt 0:00:06]} (29. Qxd6 $142 Bxd1 30. Qg3) 29... gxh6 {[%emt 0:00:00]} (29... Bxd1 $2 30. Qxg7#) 30. Re1 {[%emt 0:04:10]} Kh8 {[%emt 0:00:00]} 31. h3 {[%emt 0:00:24]} Bh5 {[%emt 0:00:00]} 32. Qh4 {[%emt 0:00:06]} Rg8 {[%emt 0:00:00]} 33. Kh1 {[%emt 0:01:41]} Rc3 {[%emt 0:00:00][%cal Bc8c3,Bc3g3,Bg3g2][%mdl 32]} 34. Be4 {[%emt 0:02:53]} Rcg3 {[%emt 0:00:47] And now ...Nxe4 would win.} 35. Bc6 {[%emt 0:00:25]} Be7 {[%emt 0:03:22]} 36. Bxd7 {[%emt 0:00:41]} (36. f5 $142 Nf8 37. fxe6) 36... Rxg2 {[%emt 0:00:22] ( -> ...Bf3)} (36... Rxb3 $2 {loses.} 37. f5 Rg5 38. fxe6 $19) 37. Bc6 {[%emt 0:00:50] [#] Prevents Bf3.} Ne4 $1 {[%emt 0:00:36][%mdl 512] Weighted Error Value: White=0.54/Black=0.24 (precise)} 0-1